[Event "Titled Tuesday Blitz November 14 Late 2023"]
[White "Willy, Stephen"]
[Black "Vlassov, Nikolai"]
[WhiteFideId "30981468"]
[BlackFideId "4103360"]
[WhiteElo "2474"]
[BlackElo "2615"]
[Result "1-0"]
[Round "8"]
[TimeControl "180+1"]
[Date "2023.11.14"]
[WhiteClock "0:00:14"]
[BlackClock "0:00:00"]
[Board "50"]

1. e4 {[%clk 0:03:00]}  Nc6 {[%clk 0:02:59]} 2. d4 {[%clk 0:03:00]}  d5 {[%clk 0:02:59]} 3. e5 {[%clk 0:02:58]}  h5 {[%clk 0:02:58]} 4. Bb5 {[%clk 0:02:52]}  Bg4 {[%clk 0:02:57]} 5. f3 {[%clk 0:02:47]}  Bf5 {[%clk 0:02:56]} 6. c4 {[%clk 0:02:44]}  dxc4 {[%clk 0:02:38]} 7. Bxc6+ {[%clk 0:02:35]}  bxc6 {[%clk 0:02:38]} 8. Qa4 {[%clk 0:02:36]}  Qd7 {[%clk 0:02:29]} 9. Qxc4 {[%clk 0:02:32]}  e6 {[%clk 0:02:25]} 10. Nc3 {[%clk 0:02:30]}  Ne7 {[%clk 0:02:21]} 11. Nge2 {[%clk 0:02:22]}  Nd5 {[%clk 0:02:18]} 12. O-O {[%clk 0:02:17]}  Be7 {[%clk 0:02:16]} 13. Ne4 {[%clk 0:02:09]}  O-O {[%clk 0:02:04]} 14. Bd2 {[%clk 0:01:55]}  Rfb8 {[%clk 0:02:01]} 15. b3 {[%clk 0:01:48]}  a5 {[%clk 0:02:00]} 16. a4 {[%clk 0:01:34]}  Nb4 {[%clk 0:01:52]} 17. Rac1 {[%clk 0:01:32]}  Qd5 {[%clk 0:01:46]} 18. Nf4 {[%clk 0:01:12]}  Qxc4 {[%clk 0:01:37]} 19. Rxc4 {[%clk 0:01:13]}  h4 {[%clk 0:01:18]} 20. Rfc1 {[%clk 0:01:02]}  Nd5 {[%clk 0:01:06]} 21. Rxc6 {[%clk 0:00:58]}  Nxf4 {[%clk 0:00:57]} 22. Bxf4 {[%clk 0:00:57]}  Rxb3 {[%clk 0:00:57]} 23. Rxc7 {[%clk 0:00:56]}  Bf8 {[%clk 0:00:54]} 24. Nd6 {[%clk 0:00:44]}  h3 {[%clk 0:00:49]} 25. Nxf5 {[%clk 0:00:31]}  exf5 {[%clk 0:00:48]} 26. d5 {[%clk 0:00:26]}  hxg2 {[%clk 0:00:46]} 27. Kxg2 {[%clk 0:00:25]}  Rb4 {[%clk 0:00:27]} 28. R1c4 {[%clk 0:00:24]}  Re8 {[%clk 0:00:17]} 29. d6 {[%clk 0:00:22]}  g5 {[%clk 0:00:16]} 30. Bxg5 {[%clk 0:00:18]}  Rxe5 {[%clk 0:00:08]} 31. d7 {[%clk 0:00:17]}  Rd5 {[%clk 0:00:04]} 32. d8=Q {[%clk 0:00:17]}  Rxd8 {[%clk 0:00:04]} 33. Bxd8 {[%clk 0:00:18]}  Rb2+ {[%clk 0:00:04]} 34. Rc2 {[%clk 0:00:17]}  Rb4 {[%clk 0:00:04]} 35. R7c4 {[%clk 0:00:18]}  Rb8 {[%clk 0:00:04]} 36. Bxa5 {[%clk 0:00:17]}  Kg7 {[%clk 0:00:04]} 37. Bc7 {[%clk 0:00:17]}  Ra8 {[%clk 0:00:04]} 38. Be5+ {[%clk 0:00:18]}  f6 {[%clk 0:00:04]} 39. Bb2 {[%clk 0:00:17]}  Bd6 {[%clk 0:00:03]} 40. Rc6 {[%clk 0:00:17]}  Bf4 {[%clk 0:00:03]} 41. Bxf6+ {[%clk 0:00:16]}  Kf7 {[%clk 0:00:02]} 42. Bb2 {[%clk 0:00:14]}  Rxa4 {[%clk 0:00:02]} 43. Rf6+ {[%clk 0:00:15]}  Ke7 {[%clk 0:00:00]} 44. Rxf5 {[%clk 0:00:14]} 1-0


[Site "https://www.chess.com"]

[Event "Titled Tuesday Blitz November 14 Late 2023"]
[White "Nikologorsky, Matfei"]
[Black "Roberson, Peter T"]
[WhiteFideId "24102474"]
[BlackFideId "412384"]
[WhiteElo "2459"]
[BlackElo "2611"]
[Result "0-1"]
[Round "8"]
[TimeControl "180+1"]
[Date "2023.11.14"]
[WhiteClock "0:00:09"]
[BlackClock "0:01:27"]
[Board "51"]

1. e4 {[%clk 0:02:59]}  d6 {[%clk 0:02:53]} 2. d4 {[%clk 0:02:58]}  Nf6 {[%clk 0:02:53]} 3. Nc3 {[%clk 0:02:59]}  c6 {[%clk 0:02:54]} 4. Nf3 {[%clk 0:02:56]}  Bg4 {[%clk 0:02:54]} 5. h3 {[%clk 0:02:55]}  Bh5 {[%clk 0:02:54]} 6. Bd3 {[%clk 0:02:50]}  e6 {[%clk 0:02:53]} 7. Be3 {[%clk 0:02:37]}  Be7 {[%clk 0:02:52]} 8. g4 {[%clk 0:02:36]}  Bg6 {[%clk 0:02:52]} 9. Qe2 {[%clk 0:02:36]}  d5 {[%clk 0:02:52]} 10. e5 {[%clk 0:02:32]}  Nfd7 {[%clk 0:02:52]} 11. h4 {[%clk 0:02:29]}  c5 {[%clk 0:02:52]} 12. h5 {[%clk 0:02:23]}  Bxd3 {[%clk 0:02:52]} 13. cxd3 {[%clk 0:02:21]}  Nc6 {[%clk 0:02:52]} 14. Rc1 {[%clk 0:02:13]}  cxd4 {[%clk 0:02:49]} 15. Bxd4 {[%clk 0:02:08]}  h6 {[%clk 0:02:43]} 16. O-O {[%clk 0:02:02]}  O-O {[%clk 0:02:35]} 17. Nb5 {[%clk 0:01:49]}  Qb8 {[%clk 0:02:28]} 18. Rfe1 {[%clk 0:01:26]}  Rc8 {[%clk 0:02:28]} 19. Be3 {[%clk 0:01:18]}  a6 {[%clk 0:02:19]} 20. Nbd4 {[%clk 0:00:54]}  Ndxe5 {[%clk 0:02:18]} 21. Nxe5 {[%clk 0:00:49]}  Qxe5 {[%clk 0:02:18]} 22. Nf3 {[%clk 0:00:48]}  Qd6 {[%clk 0:02:13]} 23. g5 {[%clk 0:00:48]}  hxg5 {[%clk 0:02:07]} 24. Bxg5 {[%clk 0:00:47]}  Bxg5 {[%clk 0:02:01]} 25. Nxg5 {[%clk 0:00:47]}  Nd4 {[%clk 0:02:02]} 26. Qg4 {[%clk 0:00:47]}  Rxc1 {[%clk 0:01:51]} 27. Rxc1 {[%clk 0:00:48]}  Qf4 {[%clk 0:01:52]} 28. Qxf4 {[%clk 0:00:41]}  Ne2+ {[%clk 0:01:52]} 29. Kh2 {[%clk 0:00:42]}  Nxf4 {[%clk 0:01:53]} 30. Rc7 {[%clk 0:00:41]}  f6 {[%clk 0:01:53]} 31. Nf7 {[%clk 0:00:25]}  Nxd3 {[%clk 0:01:47]} 32. Rxb7 {[%clk 0:00:22]}  Nxf2 {[%clk 0:01:44]} 33. Kg3 {[%clk 0:00:15]}  Ne4+ {[%clk 0:01:44]} 34. Kf4 {[%clk 0:00:16]}  Rf8 {[%clk 0:01:41]} 35. h6 {[%clk 0:00:13]}  g5+ {[%clk 0:01:34]} 36. Nxg5 {[%clk 0:00:11]}  Nxg5 {[%clk 0:01:30]} 37. Rb6 {[%clk 0:00:11]}  Kh7 {[%clk 0:01:29]} 38. Rxa6 {[%clk 0:00:11]}  Kxh6 {[%clk 0:01:29]} 39. b4 {[%clk 0:00:11]}  d4 {[%clk 0:01:28]} 40. b5 {[%clk 0:00:10]}  d3 {[%clk 0:01:28]} 41. Ke3 {[%clk 0:00:11]}  Rd8 {[%clk 0:01:27]} 42. Kd2 {[%clk 0:00:05]}  Ne4+ {[%clk 0:01:25]} 43. Kd1 {[%clk 0:00:05]}  d2 {[%clk 0:01:24]} 44. Ra3 {[%clk 0:00:05]}  Nf2+ {[%clk 0:01:23]} 45. Ke2 {[%clk 0:00:06]}  d1=Q+ {[%clk 0:01:24]} 46. Kxf2 {[%clk 0:00:07]}  Rd2+ {[%clk 0:01:24]} 47. Ke3 {[%clk 0:00:07]}  Qe1+ {[%clk 0:01:25]} 48. Kf3 {[%clk 0:00:07]}  Rf2+ {[%clk 0:01:25]} 49. Kg3 {[%clk 0:00:08]}  Qg1+ {[%clk 0:01:26]} 50. Kh3 {[%clk 0:00:09]}  Rh2# {[%clk 0:01:27]} 0-1


[Site "https://www.chess.com"]

[Event "Titled Tuesday Blitz November 14 Late 2023"]
[White "Yelisieiev, Yevhenii"]
[Black "Saya, Ethan"]
[WhiteFideId "14139642"]
[BlackFideId "26095181"]
[WhiteElo "2594"]
[BlackElo "2440"]
[Result "0-1"]
[Round "8"]
[TimeControl "180+1"]
[Date "2023.11.14"]
[WhiteClock "0:00:00"]
[BlackClock "0:00:10"]
[Board "54"]

1. d4 {[%clk 0:03:00]}  d5 {[%clk 0:02:58]} 2. Nf3 {[%clk 0:03:00]}  Nf6 {[%clk 0:02:58]} 3. c4 {[%clk 0:03:00]}  c6 {[%clk 0:02:58]} 4. Nc3 {[%clk 0:03:00]}  e6 {[%clk 0:02:58]} 5. e3 {[%clk 0:03:00]}  Nbd7 {[%clk 0:02:57]} 6. Qc2 {[%clk 0:03:00]}  Bd6 {[%clk 0:02:57]} 7. b3 {[%clk 0:03:00]}  O-O {[%clk 0:02:56]} 8. Be2 {[%clk 0:03:01]}  b6 {[%clk 0:02:52]} 9. O-O {[%clk 0:03:00]}  Bb7 {[%clk 0:02:53]} 10. Bb2 {[%clk 0:03:01]}  Rc8 {[%clk 0:02:47]} 11. Rad1 {[%clk 0:03:01]}  Bb8 {[%clk 0:02:45]} 12. e4 {[%clk 0:02:59]}  dxe4 {[%clk 0:02:44]} 13. Nxe4 {[%clk 0:03:00]}  Nxe4 {[%clk 0:02:41]} 14. Qxe4 {[%clk 0:03:01]}  Nf6 {[%clk 0:02:41]} 15. Qh4 {[%clk 0:03:01]}  Qe7 {[%clk 0:02:36]} 16. Rfe1 {[%clk 0:03:00]}  Rfd8 {[%clk 0:02:30]} 17. Bd3 {[%clk 0:02:51]}  h6 {[%clk 0:02:25]} 18. Bb1 {[%clk 0:02:46]}  Qf8 {[%clk 0:02:01]} 19. c5 {[%clk 0:02:22]}  Nd5 {[%clk 0:01:48]} 20. Rc1 {[%clk 0:01:46]}  Bf4 {[%clk 0:01:43]} 21. Rc2 {[%clk 0:01:33]}  Qe7 {[%clk 0:01:26]} 22. Qg4 {[%clk 0:01:24]}  Qf6 {[%clk 0:01:06]} 23. a3 {[%clk 0:01:15]}  Bb8 {[%clk 0:01:05]} 24. Ne5 {[%clk 0:01:09]}  Qg5 {[%clk 0:00:58]} 25. Qxg5 {[%clk 0:00:50]}  hxg5 {[%clk 0:00:59]} 26. Bc1 {[%clk 0:00:49]}  Nf4 {[%clk 0:00:53]} 27. g3 {[%clk 0:00:40]}  Bxe5 {[%clk 0:00:51]} 28. dxe5 {[%clk 0:00:28]}  Nd3 {[%clk 0:00:51]} 29. Re3 {[%clk 0:00:28]}  Nxc5 {[%clk 0:00:44]} 30. Bd2 {[%clk 0:00:15]}  Nd7 {[%clk 0:00:33]} 31. Re1 {[%clk 0:00:12]}  g4 {[%clk 0:00:32]} 32. Bg5 {[%clk 0:00:12]}  Re8 {[%clk 0:00:30]} 33. Rd2 {[%clk 0:00:10]}  Nc5 {[%clk 0:00:30]} 34. b4 {[%clk 0:00:10]}  Na4 {[%clk 0:00:30]} 35. Rd7 {[%clk 0:00:10]}  Rb8 {[%clk 0:00:25]} 36. Be4 {[%clk 0:00:09]}  Nc3 {[%clk 0:00:23]} 37. Bc2 {[%clk 0:00:05]}  c5 {[%clk 0:00:23]} 38. bxc5 {[%clk 0:00:04]}  bxc5 {[%clk 0:00:23]} 39. Re3 {[%clk 0:00:02]}  Nd5 {[%clk 0:00:23]} 40. Rb3 {[%clk 0:00:02]}  Bc6 {[%clk 0:00:22]} 41. Rxb8 {[%clk 0:00:02]}  Rxb8 {[%clk 0:00:23]} 42. Rxa7 {[%clk 0:00:02]}  Rb2 {[%clk 0:00:19]} 43. Be4 {[%clk 0:00:03]}  Re2 {[%clk 0:00:18]} 44. Bxd5 {[%clk 0:00:01]}  Re1+ {[%clk 0:00:18]} 45. Kg2 {[%clk 0:00:01]}  Bxd5+ {[%clk 0:00:19]} 46. f3 {[%clk 0:00:02]}  gxf3+ {[%clk 0:00:19]} 47. Kf2 {[%clk 0:00:03]}  Re2+ {[%clk 0:00:19]} 48. Kf1 {[%clk 0:00:03]}  Rxh2 {[%clk 0:00:16]} 49. Rc7 {[%clk 0:00:03]}  Ra2 {[%clk 0:00:12]} 50. Rxc5 {[%clk 0:00:03]}  Rxa3 {[%clk 0:00:12]} 51. Rc7 {[%clk 0:00:03]}  Ra1+ {[%clk 0:00:11]} 52. Kf2 {[%clk 0:00:03]}  Ra2+ {[%clk 0:00:12]} 53. Kf1 {[%clk 0:00:04]}  Re2 {[%clk 0:00:10]} 54. Bf4 {[%clk 0:00:04]}  Rh2 {[%clk 0:00:08]} 55. Kg1 {[%clk 0:00:04]}  Rg2+ {[%clk 0:00:08]} 56. Kf1 {[%clk 0:00:05]}  Rb2 {[%clk 0:00:09]} 57. Rc8+ {[%clk 0:00:04]}  Kh7 {[%clk 0:00:09]} 58. Rc7 {[%clk 0:00:04]}  Kg6 {[%clk 0:00:10]} 59. Rc1 {[%clk 0:00:04]}  Rh2 {[%clk 0:00:09]} 60. Rc7 {[%clk 0:00:04]}  Rh1+ {[%clk 0:00:08]} 61. Kf2 {[%clk 0:00:04]}  Rh2+ {[%clk 0:00:09]} 62. Kf1 {[%clk 0:00:04]}  Ra2 {[%clk 0:00:10]} 63. Re7 {[%clk 0:00:03]}  Be4 {[%clk 0:00:07]} 64. Rc7 {[%clk 0:00:03]}  Bf5 {[%clk 0:00:07]} 65. Be3 {[%clk 0:00:02]}  Bh3+ {[%clk 0:00:06]} 66. Ke1 {[%clk 0:00:02]}  Re2+ {[%clk 0:00:07]} 67. Kd1 {[%clk 0:00:02]}  Rxe3 {[%clk 0:00:08]} 68. Rc3 {[%clk 0:00:01]}  Rxc3 {[%clk 0:00:07]} 69. Kd2 {[%clk 0:00:01]}  Rc5 {[%clk 0:00:07]} 70. Ke3 {[%clk 0:00:02]}  Rxe5+ {[%clk 0:00:08]} 71. Kf4 {[%clk 0:00:02]}  Rf5+ {[%clk 0:00:08]} 72. Ke3 {[%clk 0:00:02]}  f2 {[%clk 0:00:09]} 73. g4 {[%clk 0:00:03]}  f1=Q {[%clk 0:00:09]} 74. gxf5+ {[%clk 0:00:04]}  Qxf5 {[%clk 0:00:09]} 75. Kd2 {[%clk 0:00:00]}  Bg4 {[%clk 0:00:10]} 0-1


[Site "https://www.chess.com"]

[Event "Titled Tuesday Blitz November 14 Late 2023"]
[White "Melikhov, Evgeny V."]
[Black "Kuznecovs, Nikita"]
[WhiteFideId "4122046"]
[BlackFideId "11604557"]
[WhiteElo "2410"]
[BlackElo "2562"]
[Result "1-0"]
[Round "8"]
[TimeControl "180+1"]
[Date "2023.11.14"]
[WhiteClock "0:00:35"]
[BlackClock "0:00:00"]
[Board "58"]

1. d4 {[%clk 0:03:00]}  d6 {[%clk 0:02:57]} 2. e4 {[%clk 0:03:00]}  c5 {[%clk 0:02:56]} 3. d5 {[%clk 0:02:55]}  a6 {[%clk 0:02:42]} 4. a4 {[%clk 0:02:54]}  e5 {[%clk 0:02:22]} 5. Nc3 {[%clk 0:02:49]}  Be7 {[%clk 0:02:21]} 6. f4 {[%clk 0:02:46]}  exf4 {[%clk 0:02:13]} 7. Bxf4 {[%clk 0:02:46]}  Bg5 {[%clk 0:02:13]} 8. Qd2 {[%clk 0:02:40]}  Bxf4 {[%clk 0:02:13]} 9. Qxf4 {[%clk 0:02:40]}  Qf6 {[%clk 0:02:14]} 10. g3 {[%clk 0:02:21]}  Nd7 {[%clk 0:02:05]} 11. Nf3 {[%clk 0:02:21]}  Nf8 {[%clk 0:01:36]} 12. e5 {[%clk 0:02:16]}  dxe5 {[%clk 0:01:34]} 13. Qxe5+ {[%clk 0:02:12]}  Qxe5+ {[%clk 0:01:33]} 14. Nxe5 {[%clk 0:02:12]}  Ng6 {[%clk 0:01:29]} 15. Nc4 {[%clk 0:02:06]}  Nf6 {[%clk 0:01:06]} 16. Nd6+ {[%clk 0:02:03]}  Ke7 {[%clk 0:01:06]} 17. Nxc8+ {[%clk 0:02:03]}  Raxc8 {[%clk 0:01:05]} 18. Bh3 {[%clk 0:01:58]}  Rce8 {[%clk 0:00:48]} 19. O-O-O {[%clk 0:01:53]}  Kd6 {[%clk 0:00:48]} 20. a5 {[%clk 0:01:51]}  Re3 {[%clk 0:00:45]} 21. Na4 {[%clk 0:01:48]}  Ne5 {[%clk 0:00:28]} 22. Nb6 {[%clk 0:01:45]}  Ne4 {[%clk 0:00:19]} 23. Rhe1 {[%clk 0:01:33]}  Rxe1 {[%clk 0:00:17]} 24. Rxe1 {[%clk 0:01:34]}  Nf2 {[%clk 0:00:17]} 25. Bc8 {[%clk 0:01:25]}  f6 {[%clk 0:00:16]} 26. Bxb7 {[%clk 0:01:22]}  h5 {[%clk 0:00:08]} 27. Bxa6 {[%clk 0:01:20]}  h4 {[%clk 0:00:08]} 28. Nc4+ {[%clk 0:01:03]}  Nxc4 {[%clk 0:00:08]} 29. Bxc4 {[%clk 0:01:02]}  hxg3 {[%clk 0:00:08]} 30. hxg3 {[%clk 0:01:02]}  Ng4 {[%clk 0:00:09]} 31. a6 {[%clk 0:01:01]}  Ne5 {[%clk 0:00:09]} 32. b3 {[%clk 0:00:56]}  Ra8 {[%clk 0:00:09]} 33. Kb2 {[%clk 0:00:52]}  Kc7 {[%clk 0:00:09]} 34. Ra1 {[%clk 0:00:51]}  Kb6 {[%clk 0:00:10]} 35. Kc3 {[%clk 0:00:50]}  Nf7 {[%clk 0:00:00]} 36. Be2 {[%clk 0:00:35]} 1-0


[Site "https://www.chess.com"]

[Event "Titled Tuesday Blitz November 14 Late 2023"]
[White "Skaric, Djuro"]
[Black "Ozates, Tuna"]
[WhiteFideId "934569"]
[BlackFideId "6354521"]
[WhiteElo "2386"]
[BlackElo "2560"]
[Result "0-1"]
[Round "8"]
[TimeControl "180+1"]
[Date "2023.11.14"]
[WhiteClock "0:00:27"]
[BlackClock "0:00:47"]
[Board "59"]

1. g3 {[%clk 0:03:00]}  c5 {[%clk 0:02:59]} 2. Bg2 {[%clk 0:03:01]}  Nc6 {[%clk 0:02:59]} 3. d3 {[%clk 0:03:01]}  g6 {[%clk 0:02:59]} 4. e4 {[%clk 0:03:02]}  Bg7 {[%clk 0:03:00]} 5. Nc3 {[%clk 0:03:03]}  d6 {[%clk 0:03:00]} 6. f4 {[%clk 0:03:03]}  e6 {[%clk 0:02:57]} 7. Nf3 {[%clk 0:03:04]}  Nge7 {[%clk 0:02:57]} 8. O-O {[%clk 0:03:04]}  O-O {[%clk 0:02:58]} 9. g4 {[%clk 0:03:05]}  f5 {[%clk 0:02:58]} 10. exf5 {[%clk 0:02:59]}  gxf5 {[%clk 0:02:57]} 11. g5 {[%clk 0:02:58]}  Rb8 {[%clk 0:02:50]} 12. h4 {[%clk 0:02:56]}  b5 {[%clk 0:02:50]} 13. h5 {[%clk 0:02:57]}  b4 {[%clk 0:02:51]} 14. Ne2 {[%clk 0:02:56]}  Bb7 {[%clk 0:02:49]} 15. Ng3 {[%clk 0:02:56]}  Qd7 {[%clk 0:02:39]} 16. h6 {[%clk 0:02:57]}  Bh8 {[%clk 0:02:39]} 17. Nh4 {[%clk 0:02:57]}  Ng6 {[%clk 0:02:37]} 18. Qh5 {[%clk 0:02:54]}  Nce7 {[%clk 0:02:32]} 19. Bxb7 {[%clk 0:02:31]}  Rxb7 {[%clk 0:02:26]} 20. Nxg6 {[%clk 0:02:17]}  Nxg6 {[%clk 0:02:15]} 21. Qf3 {[%clk 0:02:16]}  a5 {[%clk 0:02:05]} 22. Nh5 {[%clk 0:02:14]}  e5 {[%clk 0:01:59]} 23. Qd5+ {[%clk 0:02:11]}  Qf7 {[%clk 0:01:57]} 24. Qxd6 {[%clk 0:02:07]}  Rd7 {[%clk 0:01:51]} 25. Qxc5 {[%clk 0:02:06]}  e4 {[%clk 0:01:52]} 26. Be3 {[%clk 0:01:55]}  Bxb2 {[%clk 0:01:45]} 27. Qxa5 {[%clk 0:01:50]}  exd3 {[%clk 0:01:41]} 28. cxd3 {[%clk 0:01:50]}  Rxd3 {[%clk 0:01:42]} 29. Rab1 {[%clk 0:01:47]}  Bc3 {[%clk 0:01:36]} 30. Bc5 {[%clk 0:01:39]}  Nh4 {[%clk 0:01:22]} 31. Nf6+ {[%clk 0:01:12]}  Bxf6 {[%clk 0:01:18]} 32. Rb3 {[%clk 0:00:40]}  Qd5 {[%clk 0:01:02]} 33. Rf2 {[%clk 0:00:27]}  Rd1+ {[%clk 0:00:51]} 34. Kh2 {[%clk 0:00:27]}  Qh1+ {[%clk 0:00:50]} 35. Kg3 {[%clk 0:00:27]}  Rg1+ {[%clk 0:00:50]} 36. Rg2 {[%clk 0:00:27]}  Rxg2# {[%clk 0:00:47]} 0-1


[Site "https://www.chess.com"]

[Event "Titled Tuesday Blitz November 14 Late 2023"]
[White "Pourkashiyan, Atousa"]
[Black "Djordjevic, Dejan N"]
[WhiteFideId "12502014"]
[BlackFideId "913316"]
[WhiteElo "2541"]
[BlackElo "2080"]
[Result "0-1"]
[Round "8"]
[TimeControl "180+1"]
[Date "2023.11.14"]
[WhiteClock "0:00:21"]
[BlackClock "0:00:14"]
[Board "62"]

1. e4 {[%clk 0:03:00]}  c5 {[%clk 0:02:59]} 2. Nf3 {[%clk 0:02:59]}  Nc6 {[%clk 0:02:59]} 3. d4 {[%clk 0:02:59]}  cxd4 {[%clk 0:02:59]} 4. Nxd4 {[%clk 0:03:00]}  Nf6 {[%clk 0:02:59]} 5. Nc3 {[%clk 0:03:00]}  Qb6 {[%clk 0:02:58]} 6. Nb3 {[%clk 0:02:59]}  e6 {[%clk 0:02:50]} 7. Be3 {[%clk 0:02:59]}  Qc7 {[%clk 0:02:43]} 8. Be2 {[%clk 0:02:59]}  a6 {[%clk 0:02:43]} 9. O-O {[%clk 0:02:56]}  b5 {[%clk 0:02:42]} 10. Bf3 {[%clk 0:02:51]}  d6 {[%clk 0:02:40]} 11. Re1 {[%clk 0:02:46]}  Rb8 {[%clk 0:02:40]} 12. a3 {[%clk 0:02:24]}  Be7 {[%clk 0:02:36]} 13. g3 {[%clk 0:02:24]}  Ne5 {[%clk 0:02:31]} 14. Bg2 {[%clk 0:02:23]}  Nc4 {[%clk 0:02:31]} 15. Bc1 {[%clk 0:02:22]}  O-O {[%clk 0:02:31]} 16. h3 {[%clk 0:02:17]}  Bb7 {[%clk 0:02:30]} 17. Nd2 {[%clk 0:02:13]}  Nb6 {[%clk 0:02:22]} 18. Kh2 {[%clk 0:02:09]}  Rfc8 {[%clk 0:02:21]} 19. f4 {[%clk 0:02:09]}  Rd8 {[%clk 0:02:06]} 20. Nf3 {[%clk 0:02:03]}  Nc4 {[%clk 0:02:05]} 21. g4 {[%clk 0:01:51]}  Ba8 {[%clk 0:01:51]} 22. g5 {[%clk 0:01:48]}  Nd7 {[%clk 0:01:48]} 23. Kh1 {[%clk 0:01:34]}  a5 {[%clk 0:01:44]} 24. f5 {[%clk 0:01:29]}  b4 {[%clk 0:01:36]} 25. axb4 {[%clk 0:01:27]}  axb4 {[%clk 0:01:36]} 26. Nb1 {[%clk 0:01:08]}  exf5 {[%clk 0:01:10]} 27. exf5 {[%clk 0:01:07]}  Nce5 {[%clk 0:01:07]} 28. Nbd2 {[%clk 0:01:00]}  Rbc8 {[%clk 0:01:02]} 29. f6 {[%clk 0:00:45]}  gxf6 {[%clk 0:00:59]} 30. gxf6 {[%clk 0:00:46]}  Bxf6 {[%clk 0:00:56]} 31. Ne4 {[%clk 0:00:46]}  Qxc2 {[%clk 0:00:36]} 32. Nxf6+ {[%clk 0:00:24]}  Nxf6 {[%clk 0:00:35]} 33. Bg5 {[%clk 0:00:21]}  Qxd1 {[%clk 0:00:31]} 34. Rexd1 {[%clk 0:00:22]}  Kg7 {[%clk 0:00:26]} 35. Nxe5 {[%clk 0:00:18]}  Bxg2+ {[%clk 0:00:26]} 36. Kxg2 {[%clk 0:00:19]}  dxe5 {[%clk 0:00:26]} 37. Rxd8 {[%clk 0:00:19]}  Rxd8 {[%clk 0:00:25]} 38. Rf1 {[%clk 0:00:20]}  Rd6 {[%clk 0:00:24]} 39. Re1 {[%clk 0:00:19]}  h6 {[%clk 0:00:19]} 40. Bh4 {[%clk 0:00:19]}  Nd7 {[%clk 0:00:19]} 41. Bg3 {[%clk 0:00:19]}  f6 {[%clk 0:00:19]} 42. Re2 {[%clk 0:00:20]}  Rd3 {[%clk 0:00:17]} 43. Bf2 {[%clk 0:00:20]}  Kg6 {[%clk 0:00:17]} 44. Re4 {[%clk 0:00:20]}  b3 {[%clk 0:00:16]} 45. Rg4+ {[%clk 0:00:20]}  Kf5 {[%clk 0:00:16]} 46. Rb4 {[%clk 0:00:21]}  Nf8 {[%clk 0:00:15]} 47. Rxb3 {[%clk 0:00:21]}  Rxb3 {[%clk 0:00:14]} 48. h4 {[%clk 0:00:20]}  Rxb2 {[%clk 0:00:14]} 49. h5 {[%clk 0:00:21]}  Ne6 {[%clk 0:00:14]} 50. Kf3 {[%clk 0:00:22]}  e4+ {[%clk 0:00:14]} 51. Ke3 {[%clk 0:00:22]}  Rxf2 {[%clk 0:00:14]} 52. Kxf2 {[%clk 0:00:21]}  Kf4 {[%clk 0:00:14]} 0-1


[Site "https://www.chess.com"]

[Event "Titled Tuesday Blitz November 14 Late 2023"]
[White "Guerra Tulcan, Lenin"]
[Black "PoXerStar"]
[WhiteFideId "3601382"]
[WhiteElo "2595"]
[BlackElo "2438"]
[Result "0-1"]
[Round "8"]
[TimeControl "180+1"]
[Date "2023.11.14"]
[WhiteClock "0:00:09"]
[BlackClock "0:00:10"]
[Board "67"]

1. e4 {[%clk 0:03:00]}  c6 {[%clk 0:03:00]} 2. Nf3 {[%clk 0:02:59]}  d5 {[%clk 0:03:00]} 3. exd5 {[%clk 0:03:00]}  cxd5 {[%clk 0:03:01]} 4. Ne5 {[%clk 0:03:00]}  e6 {[%clk 0:02:57]} 5. Bb5+ {[%clk 0:02:58]}  Nd7 {[%clk 0:02:52]} 6. O-O {[%clk 0:02:56]}  Bd6 {[%clk 0:02:51]} 7. Re1 {[%clk 0:02:52]}  Ne7 {[%clk 0:02:45]} 8. b3 {[%clk 0:02:41]}  O-O {[%clk 0:02:29]} 9. Bxd7 {[%clk 0:02:37]}  Bxd7 {[%clk 0:02:30]} 10. Bb2 {[%clk 0:02:37]}  f6 {[%clk 0:02:27]} 11. Nxd7 {[%clk 0:02:35]}  Qxd7 {[%clk 0:02:28]} 12. Qg4 {[%clk 0:02:34]}  Nf5 {[%clk 0:02:13]} 13. Nc3 {[%clk 0:02:32]}  Rae8 {[%clk 0:01:46]} 14. a4 {[%clk 0:02:27]}  Qf7 {[%clk 0:01:44]} 15. Nb5 {[%clk 0:02:23]}  Bb8 {[%clk 0:01:44]} 16. Ba3 {[%clk 0:02:22]}  a6 {[%clk 0:01:42]} 17. Bxf8 {[%clk 0:02:18]}  h5 {[%clk 0:01:37]} 18. Qh3 {[%clk 0:01:50]}  axb5 {[%clk 0:01:08]} 19. Bb4 {[%clk 0:01:48]}  Nd4 {[%clk 0:00:59]} 20. Qd3 {[%clk 0:01:38]}  Nc6 {[%clk 0:00:51]} 21. Qxb5 {[%clk 0:01:15]}  Qc7 {[%clk 0:00:43]} 22. g3 {[%clk 0:01:15]}  Kf7 {[%clk 0:00:41]} 23. c3 {[%clk 0:01:11]}  Ne5 {[%clk 0:00:40]} 24. Qe2 {[%clk 0:01:07]}  Qc6 {[%clk 0:00:40]} 25. Qxh5+ {[%clk 0:01:06]}  Kg8 {[%clk 0:00:38]} 26. Re3 {[%clk 0:00:56]}  Ba7 {[%clk 0:00:37]} 27. d4 {[%clk 0:00:56]}  Nf7 {[%clk 0:00:30]} 28. Rae1 {[%clk 0:00:52]}  e5 {[%clk 0:00:31]} 29. R3e2 {[%clk 0:00:52]}  e4 {[%clk 0:00:27]} 30. f3 {[%clk 0:00:50]}  Ng5 {[%clk 0:00:27]} 31. f4 {[%clk 0:00:34]}  Nf3+ {[%clk 0:00:21]} 32. Qxf3 {[%clk 0:00:34]}  exf3 {[%clk 0:00:22]} 33. Rxe8+ {[%clk 0:00:34]}  Kh7 {[%clk 0:00:23]} 34. R1e6 {[%clk 0:00:24]}  Bxd4+ {[%clk 0:00:22]} 35. cxd4 {[%clk 0:00:25]}  Qc2 {[%clk 0:00:18]} 36. Re2 {[%clk 0:00:18]}  fxe2 {[%clk 0:00:17]} 37. Kf2 {[%clk 0:00:19]}  Qd3 {[%clk 0:00:15]} 38. Be1 {[%clk 0:00:17]}  Qxd4+ {[%clk 0:00:13]} 39. Re3 {[%clk 0:00:18]}  Kg6 {[%clk 0:00:12]} 40. Kxe2 {[%clk 0:00:18]}  Kf5 {[%clk 0:00:11]} 41. Rd3 {[%clk 0:00:15]}  Qe4+ {[%clk 0:00:11]} 42. Kd2 {[%clk 0:00:12]}  d4 {[%clk 0:00:11]} 43. Bf2 {[%clk 0:00:12]}  Qg2 {[%clk 0:00:11]} 44. Ke2 {[%clk 0:00:12]}  Qxh2 {[%clk 0:00:10]} 45. Rxd4 {[%clk 0:00:12]}  g5 {[%clk 0:00:10]} 46. Rb4 {[%clk 0:00:11]}  g4 {[%clk 0:00:10]} 47. Rxb7 {[%clk 0:00:10]}  Qg2 {[%clk 0:00:10]} 48. Rb5+ {[%clk 0:00:10]}  Kg6 {[%clk 0:00:11]} 49. Rb4 {[%clk 0:00:09]}  Qf3+ {[%clk 0:00:11]} 50. Ke1 {[%clk 0:00:08]}  Qc3+ {[%clk 0:00:10]} 51. Ke2 {[%clk 0:00:09]}  Qxb4 {[%clk 0:00:10]} 52. a5 {[%clk 0:00:07]}  Qxa5 {[%clk 0:00:10]} 53. Be1 {[%clk 0:00:07]}  Qb5+ {[%clk 0:00:11]} 54. Kf2 {[%clk 0:00:06]}  Qxb3 {[%clk 0:00:10]} 55. Kg2 {[%clk 0:00:07]}  Qf3+ {[%clk 0:00:10]} 56. Kg1 {[%clk 0:00:07]}  Qe2 {[%clk 0:00:09]} 57. Bf2 {[%clk 0:00:08]}  Kf5 {[%clk 0:00:08]} 58. Kg2 {[%clk 0:00:09]}  Ke4 {[%clk 0:00:08]} 59. Kg1 {[%clk 0:00:10]}  Kf3 {[%clk 0:00:09]} 60. Kh1 {[%clk 0:00:09]}  Qf1+ {[%clk 0:00:09]} 61. Kh2 {[%clk 0:00:09]}  Qg2# {[%clk 0:00:10]} 0-1


[Site "https://www.chess.com"]